fUST/lending_fUST_20251118
["ID","MTS","AMOUNT","RATE_DAILY","PERIOD"]
[394297069,1763426947174,-283.77596147,0.00023672,2]
[394297070,1763426947197,-500.0,0.00023672,2]
[394297071,1763426947217,-500.0,0.00023672,2]
[394297072,1763426947240,-500.0,0.00023672,2]
[394297073,1763426947261,-493.0932424,0.00023672,2]
[394297074,1763426947286,-500.0,0.00023672,2]
[394297075,1763426947309,-500.0,0.00023672,2]
[394297076,1763426947328,-250.65848881,0.00023672,2]
[394297077,1763426947349,-500.0,0.00023672,2]
[394297078,1763426947371,-500.0,0.00023672,2]
[394297079,1763426947392,-500.0,0.00023672,2]
[394297080,1763426947418,-500.0,0.00023672,2]
[394297081,1763426947440,-500.0,0.00023672,2]
[394297082,1763426947461,-500.0,0.00023672,2]
[394297083,1763426947482,-500.0,0.00023672,2]
[394297084,1763426947505,-500.0,0.00023672,2]
[394297085,1763426947528,-500.0,0.00023672,2]
[394297086,1763426947551,-500.0,0.00023672,2]
[394297087,1763426947572,-500.0,0.00023672,2]
[394297088,1763426947593,-500.0,0.00023672,2]
[394297089,1763426947614,-500.0,0.00023672,2]
[394297090,1763426947636,-500.0,0.00023672,2]
[394297091,1763426947662,-500.0,0.00023672,2]
[394297092,1763426947684,-500.0,0.00023672,2]
[394297093,1763426947706,-500.0,0.00023672,2]
[394297094,1763426947729,-500.0,0.00023672,2]
[394297095,1763426947752,-500.0,0.00023672,2]
[394297096,1763426947773,-500.0,0.00023672,2]
[394297097,1763426947795,-500.0,0.00023672,2]
[394297098,1763426947816,-500.0,0.00023672,2]
[394297099,1763426947927,-500.0,0.00023672,2]
[394297100,1763426947951,-500.0,0.00023672,2]
[394297102,1763426947975,-500.0,0.00023672,2]
[394297103,1763426947998,-500.0,0.00023672,2]
[394297104,1763426948025,-500.0,0.00023672,2]
[394297105,1763426948050,-500.0,0.00023672,2]
[394297106,1763426948073,-500.0,0.00023672,2]
[394297107,1763426948097,-500.0,0.00023672,2]
[394297108,1763426948120,-500.0,0.00023672,2]
[394297109,1763426948148,-500.0,0.00023672,2]
[394297110,1763426948172,-500.0,0.00023672,2]
[394297111,1763426948195,-500.0,0.00023672,2]
[394297112,1763426948220,-500.0,0.00023672,2]
[394297113,1763426948243,-500.0,0.00023672,2]
[394297114,1763426948266,-500.0,0.00023672,2]
[394297115,1763426948290,-500.0,0.00023672,2]
[394297116,1763426948313,-500.0,0.00023672,2]
[394297117,1763426948336,-500.0,0.00023672,2]
[394297118,1763426948359,-500.0,0.00023672,2]
[394297119,1763426948382,-500.0,0.00023672,2]
[394297120,1763426948406,-243.71522248,0.00023672,2]
[394297121,1763426948428,-500.0,0.00023672,2]
[394297122,1763426948450,-500.0,0.00023672,2]
[394297123,1763426948472,-500.0,0.00023672,2]
[394297124,1763426948494,-500.0,0.00023672,2]
[394297125,1763426948517,-500.0,0.00023672,2]
[394297126,1763426948539,-500.0,0.00023672,2]
[394297127,1763426948561,-500.0,0.00023672,2]
[394297128,1763426948584,-500.0,0.00023672,2]
[394297130,1763426948606,-500.0,0.00023672,2]
[394297131,1763426948630,-500.0,0.00023672,2]
[394297132,1763426948657,-500.0,0.00023672,2]
[394297133,1763426948680,-500.0,0.00023672,2]
[394297134,1763426948704,-500.0,0.00023672,2]
[394297135,1763426948726,-500.0,0.00023672,2]
[394297136,1763426948749,-500.0,0.00023672,2]
[394297137,1763426948773,-500.0,0.00023672,2]
[394297138,1763426948798,-500.0,0.00023672,2]
[394297139,1763426948821,-500.0,0.00023672,2]
[394297140,1763426948845,-500.0,0.00023672,2]
[394297141,1763426948869,-500.0,0.00023672,2]
[394297142,1763426948895,-500.0,0.00023672,2]
[394297143,1763426948920,-600.0,0.00023672,2]
[394297144,1763426948943,-500.0,0.00023672,2]
[394297145,1763426948967,-500.0,0.00023672,2]
[394297146,1763426948991,-500.0,0.00023672,2]
[394297147,1763426949018,-500.0,0.00023672,2]
[394297148,1763426949041,-500.0,0.00023672,2]
[394297149,1763426949066,-500.0,0.00023672,2]
[394297150,1763426949093,-500.0,0.00023672,2]
[394297151,1763426949116,-1200.0,0.00023672,2]
[394297153,1763426949137,-500.0,0.00023673,2]
[394297154,1763426949163,-500.0,0.00023673,2]
[394297155,1763426949185,-500.0,0.00023673,2]
[394297156,1763426949207,-50000.0,0.00023673,2]
[394297157,1763426949228,-192.0,0.00023694,2]
[394297158,1763426949251,-300.0,0.00023694,2]
[394297159,1763426949273,-151.0,0.00023695,2]
[394297160,1763426949293,-151.0,0.00023695,2]
[394297161,1763426949313,-151.0,0.00023695,2]
[394297162,1763426949333,-151.0,0.00023695,2]
[394297163,1763426949354,-151.0,0.00023695,2]
[394297164,1763426949374,-151.0,0.00023695,2]
[394297165,1763426949399,-209.40437684,0.00023695,2]
[394297166,1763426949418,-151.0,0.00023695,2]
[394297167,1763426949438,-151.0,0.00023695,2]
[394297168,1763426949458,-151.0,0.00023695,2]
[394297169,1763426949479,-151.0,0.00023695,2]
[394297170,1763426949500,-151.0,0.00023695,2]
[394297171,1763426949520,-151.0,0.00023695,2]
[394297172,1763426949539,-151.0,0.00023695,2]
[394297173,1763426949559,-151.0,0.00023695,2]
[394297174,1763426949577,-151.0,0.00023695,2]
[394297175,1763426949597,-151.0,0.00023695,2]
[394297176,1763426949618,-151.0,0.00023695,2]
[394297177,1763426949637,-301.99999997,0.00023695,2]
[394297178,1763426949660,-500.0,0.00023695,2]
[394297179,1763426949681,-500.0,0.00023696,2]
[394297180,1763426949701,-500.0,0.00023696,2]
[394297181,1763426949722,-500.0,0.00023706,2]
[394297182,1763426949742,-500.0,0.00023706,2]
[394297183,1763426949761,-500.0,0.00023706,2]
[394297185,1763426949780,-200.0,0.00023707,2]
[394297186,1763426949799,-500.0,0.00023773,2]
[394297187,1763426949820,-641.50097614,0.00024791,2]
[394297188,1763426949838,-196.32159881,0.00024878,2]
[394297189,1763426949858,-500.0,0.00024899,2]
[394297190,1763426949879,-472.42484094,0.00024899,2]
[394297191,1763426949900,-353.53515507,0.00024899,2]
[394297192,1763426949920,-500.0,0.00024899,2]
[394297193,1763426949940,-500.0,0.00024899,2]
[394297194,1763426949960,-500.0,0.00024899,2]
[394297195,1763426949980,-500.0,0.00024899,2]
[394297196,1763426950000,-500.0,0.00024899,2]
[394297197,1763426950023,-500.0,0.00024899,2]
[394297198,1763426950044,-3930.91200875,0.000249,2]
[394297201,1763426951104,-480.38732186,0.00023673,2]
[394297202,1763426951124,-13304.65341495,0.000249,2]
[394297203,1763426951145,-151.0,0.000249,7]
[394297204,1763426951167,-172.701613,0.000249,7]
[394297205,1763426951186,-266.370069,0.000249,7]
[394297206,1763426951206,-151.0,0.000249,7]
[394297207,1763426951306,-151.0,0.000249,7]
[394297208,1763426951326,-231.0,0.00025502,2]
[394297209,1763426951346,-400.0,0.00025678,2]
[394297210,1763426951366,-1053.0,0.00025797,2]
[394297211,1763426951385,-500.0,0.00027397,2]
[394297212,1763426951408,-500.0,0.00027397,2]
[394297213,1763426951427,-500.0,0.00027397,2]
[394297214,1763426951446,-500.0,0.00027397,2]
[394297215,1763426951465,-500.0,0.00027397,2]
[394297216,1763426951484,-152.02745368,0.00029161,30]
[394297217,1763426951502,-350.0,0.00029329,2]
[394297218,1763426951520,-96.41149562,0.000312,2]
[394297254,1763426966089,-54.78310962,0.000312,2]
[394297255,1763426966110,-235.792,0.00031326,29]
[394297256,1763426966131,-356.29,0.00032173,7]
[394297258,1763426966153,-151.0,0.0003221,31]
[394297259,1763426966174,-151.0,0.0003221,31]
[394297260,1763426966195,-387.63,0.000323,7]
[394297261,1763426966216,-179.65906304,0.000332,117]
[394297262,1763426966235,-181.47390391,0.00037428,18]
[394297263,1763426966254,-309.90850131,0.00037908,2]
[394297264,1763426966280,-299.74475942,0.00037908,2]
[394297265,1763426966302,-452.31017101,0.00038183,14]
[394297266,1763426966322,-326.180307,0.000382,20]
[394297267,1763426966343,-500.0,0.00038202,30]
[394297268,1763426966363,-500.0,0.00038202,2]
[394297269,1763426966383,-2000.0,0.00038203,20]
[394297270,1763426966407,-151.0,0.00038203,31]
[394297271,1763426966428,-151.0,0.00038203,31]
[394297272,1763426966448,-151.0,0.00038203,31]
[394297273,1763426966468,-151.0,0.00038203,31]
[394297274,1763426966488,-151.0,0.00038203,31]
[394297275,1763426966508,-151.0,0.00038203,31]
[394297276,1763426966528,-151.0,0.00038203,31]
[394297277,1763426966548,-188.553408,0.00038203,31]
[394297278,1763426966578,151.0,0.0003221,31]
[394297279,1763426967180,150.0,0.00031353,2]
[394297280,1763426968120,165.44,0.00034203,2]
[394297281,1763426968561,248.16,0.00037054,2]
[394297282,1763426969168,-500.0,0.00038838,5]
[394297283,1763426969189,-216.7685298,0.00038838,5]
[394297284,1763426973954,151.0,0.0003221,31]
[394297285,1763426977486,229.25643974,0.00028524,2]
[394297286,1763426977858,229.25643974,0.00029389,56]
[394297287,1763426978251,229.25643974,0.00030253,110]
[394297351,1763427032190,-283.2314702,0.00038838,5]
[394297353,1763427032202,-151.0,0.00038838,120]
[394297355,1763427032217,-500.0,0.00039385,5]
[394297357,1763427032230,-1000.0,0.00039385,5]
[394297359,1763427032242,-330.88,0.00039904,2]
[394297362,1763427032254,-1000.0,0.00039933,5]
[394297364,1763427032266,-500.0,0.0004,120]
[394297366,1763427032279,-160.0,0.00040605,3]
[394297368,1763427032291,-17235.5654237,0.00040815,3]
[394297370,1763427032304,-387.63,0.000409,7]
[394297373,1763427032316,-39910.50369042,0.00041096,2]
[394297375,1763427032328,-151.0,0.00041096,120]
[394297377,1763427032340,-151.0,0.00041096,120]
[394297379,1763427032353,-155.570449,0.00041096,120]
[394297381,1763427032364,-151.0,0.00041096,2]
[394297384,1763427032376,-162.60749412,0.00041096,2]
[394297386,1763427032387,-151.0,0.00041096,2]
[394297388,1763427032399,-500.0,0.00041117,10]
[394297390,1763427032411,-500.9249435,0.00041117,10]
[394297393,1763427032424,-170.60808093,0.00041117,10]
[394297395,1763427032435,-919.36272018,0.00041237,2]
[394297397,1763427032447,-250.0,0.00041237,2]
[394297399,1763427032461,-250.0,0.00041237,2]
[394297401,1763427032472,-250.0,0.00041237,2]
[394297403,1763427032481,-250.0,0.00041237,2]
[394297405,1763427032492,-250.0,0.00041237,2]
[394297407,1763427032504,-250.0,0.00041237,2]
[394297409,1763427032515,-250.0,0.00041237,2]
[394297412,1763427032525,-250.0,0.00041237,2]
[394297414,1763427032538,-250.0,0.00041237,2]
[394297416,1763427032552,-250.0,0.00041237,2]
[394297418,1763427032572,-500.0,0.00041237,2]
[394297420,1763427032591,-624.0,0.00041237,2]
[394297422,1763427032603,-198.0,0.00041237,2]
[394297424,1763427032616,-151.0,0.00041399,120]
[394297426,1763427032627,-500.0,0.00041399,120]
[394297429,1763427032640,-500.0,0.00041399,2]
[394297431,1763427032652,-10233.0,0.000414,120]
[394297433,1763427032665,-151.584754,0.000414,120]
[394297435,1763427032677,-151.0,0.000414,120]
[394297437,1763427032688,-151.0,0.000414,15]
[394297439,1763427032698,-151.0,0.000414,15]
[394297441,1763427032711,-151.0,0.000414,15]
[394297443,1763427032721,-151.0,0.000414,120]
[394297445,1763427032731,-151.0,0.000414,120]
[394297447,1763427032740,-151.0,0.000414,120]
[394297449,1763427032750,-151.0,0.000414,120]
[394297451,1763427032761,-151.0,0.000414,120]
[394297453,1763427032772,-151.0,0.000414,120]
[394297456,1763427032785,-160.0,0.00041476,4]
[394297458,1763427032796,-1000.0,0.00041665,10]
[394297460,1763427032807,-500.0,0.00042156,10]
[394297462,1763427032818,-407.9006749,0.00042156,10]
[394297464,1763427032827,-500.0,0.00042156,10]
[394297466,1763427032837,-501.65172217,0.00042156,10]
[394297469,1763427032849,-500.0,0.00042156,10]
[394297471,1763427032860,-500.0,0.00042156,10]
[394297473,1763427032870,-159.42078263,0.00042156,10]
[394297475,1763427032880,-500.0,0.00042156,10]
[394297477,1763427032891,-500.0,0.00042213,10]
[394297479,1763427032901,-160.0,0.00042347,5]
[394297481,1763427032911,-806.97166025,0.00042491,2]
[394297484,1763427032921,-1000.0,0.00042704,10]
[394297486,1763427032930,-1000.0,0.00042704,10]
[394297488,1763427032940,-1000.0,0.00042704,10]
[394297490,1763427032950,-506.27760567,0.00042704,10]
[394297492,1763427032965,-413.6,0.00042754,2]
[394297494,1763427032975,-160.0,0.00043217,6]
[394297496,1763427032986,-504.77391435,0.00043251,10]
[394297498,1763427032997,-167.28293914,0.00043291,2]
[394297501,1763427033010,-301.10929045,0.00043291,2]
[394297503,1763427033021,-535.30540525,0.00043291,2]
[394297505,1763427033032,-387.78411937,0.00043291,2]
[394297507,1763427033047,-443.18185071,0.00043291,2]
[394297509,1763427033059,-160.0,0.00044088,7]
[394297511,1763427033070,-199.0,0.00044109,30]
[394297513,1763427033080,-151.0,0.00044114,120]
[394297515,1763427033093,-151.0,0.00044114,120]
[394297518,1763427033105,-500.0,0.00044114,10]
[394297520,1763427033116,-500.0,0.00044114,10]
[394297522,1763427033126,-500.0,0.00044114,7]
[394297524,1763427033136,-500.0,0.00044114,10]
[394297526,1763427033146,-574.21767203,0.00044213,2]
[394297528,1763427033156,-160.460057,0.00044619,120]
[394297530,1763427033167,-151.0,0.00044619,120]
[394297532,1763427033177,-195.630336,0.00044619,120]
[394297534,1763427033188,-151.0,0.00044662,120]
[394297536,1763427033199,-151.0,0.00044662,120]
[394297539,1763427033213,-151.0,0.00044662,120]
[394297541,1763427033224,-1002.78462468,0.00044662,10]
[394297543,1763427033235,-1000.0,0.00044662,7]
[394297545,1763427033246,-504.66215632,0.00044662,10]
[394297546,1763427033343,-500.92126911,0.00044673,10]
[394297547,1763427033386,-500.0,0.00044673,10]
[394297548,1763427033397,-500.0,0.00044673,10]
[394297549,1763427033407,-500.0,0.00044673,10]
[394297550,1763427033416,-500.0,0.00044673,10]
[394297551,1763427033425,-270.877675,0.00044673,120]
[394297552,1763427033435,-151.0,0.00044673,120]
[394297553,1763427033444,-168.0,0.00044883,2]
[394297554,1763427033453,-160.0,0.00044959,8]
[394297555,1763427033465,-16706.10052884,0.0004496,3]
[394297561,1763427038043,-529.46489486,0.0004496,3]
[394297562,1763427038053,-500.0,0.0004497,10]
[394297563,1763427038063,-500.0,0.0004497,10]
[394297564,1763427038075,-57.43089812,0.0004497,10]
[394297567,1763427039017,-542.04802517,0.0004497,10]
[394297568,1763427039027,-500.0,0.0004521,7]
[394297569,1763427039039,-999.028427,0.00045221,10]
[394297570,1763427039049,-500.86969273,0.00045221,10]
[394297571,1763427039059,-199.0,0.00045479,30]
[394297572,1763427039069,-496.32,0.00045605,2]
[394297573,1763427039079,-500.0,0.00045724,10]
[394297574,1763427039088,-1000.0,0.000458,120]
[394297575,1763427039098,-387.63,0.000458,14]
[394297576,1763427039107,-160.0,0.0004583,9]
[394297577,1763427039121,-565.34780213,0.00045834,2]
[394297578,1763427039131,-500.0,0.00046,120]
[394297579,1763427039141,-1000.0,0.00046,120]
[394297580,1763427039152,-587.0,0.00046,120]
[394297581,1763427039162,-471.0,0.00046245,2]
[394297582,1763427039173,-168.0,0.00046301,2]
[394297583,1763427039184,-471.0,0.0004635,120]
[394297584,1763427039195,-151.0,0.00046361,120]
[394297585,1763427039205,-155.485935,0.00046361,120]
[394297586,1763427039219,-151.0,0.00046361,120]
[394297587,1763427039229,-151.0,0.00046361,120]
[394297588,1763427039239,-153.620232,0.00046361,120]
[394297589,1763427039249,-151.0,0.00046361,120]
[394297590,1763427039259,-286.144364,0.00046361,120]
[394297591,1763427039268,-469.0,0.00046361,120]
[394297592,1763427039278,-500.0,0.00046459,120]
[394297593,1763427039289,-500.0,0.00046459,2]
[394297594,1763427039300,-151.0,0.0004646,120]
[394297595,1763427039311,-170.155852,0.0004646,120]
[394297596,1763427039320,-151.0,0.0004646,120]
[394297597,1763427039330,-151.0,0.0004646,120]
[394297598,1763427039340,-500.0,0.00046473,10]
[394297599,1763427039351,-500.0,0.00046473,10]
[394297600,1763427039361,-150.0,0.00046489,7]
[394297601,1763427039371,-150.0,0.00046489,7]
[394297602,1763427039382,-152.310729,0.0004649,120]
[394297603,1763427039392,-151.0,0.0004649,120]
[394297604,1763427039403,-151.0,0.0004649,120]
[394297605,1763427039413,-17235.5654237,0.0004649,4]
[394297606,1763427039423,-151.0,0.0004649,120]
[394297607,1763427039432,-151.0,0.0004649,120]
[394297608,1763427039443,-151.0,0.0004649,120]
[394297609,1763427039454,-151.0,0.00046498,120]
[394297610,1763427039468,-301.87,0.00046499,120]
[394297611,1763427039479,-500.0,0.00046499,2]
[394297612,1763427039488,-500.0,0.00046499,2]
[394297613,1763427039500,-150.0,0.00046499,7]
[394297614,1763427039511,-28287.0480411,0.000465,30]
[394297615,1763427039521,-151.0,0.000465,120]
[394297616,1763427039531,-151.0,0.000465,120]
[394297617,1763427039541,-151.0,0.000465,120]
[394297618,1763427039551,-151.0,0.000465,120]
[394297619,1763427039562,-151.0,0.000465,120]
[394297620,1763427039571,-151.0,0.000465,120]
[394297621,1763427039582,-151.0,0.000465,15]
[394297622,1763427039592,-151.0,0.000465,15]
[394297623,1763427039602,-151.0,0.000465,15]
[394297624,1763427039612,-151.0,0.000465,120]
[394297625,1763427039622,-151.0,0.000465,120]
[394297626,1763427039631,-175.918206,0.000465,120]
[394297628,1763427039641,-151.0,0.000465,120]
[394297629,1763427039651,-151.0,0.000465,120]
[394297630,1763427039662,-151.0,0.000465,120]
[394297631,1763427039672,-151.0,0.000465,120]
[394297632,1763427039681,-151.0,0.000465,120]
[394297633,1763427039691,-151.0,0.000465,120]
[394297634,1763427039702,-465.17974643,0.00046541,2]
[394297635,1763427039711,-151.0,0.000466,21]
[394297636,1763427039726,-469.0,0.00046616,2]
[394297637,1763427039736,-160.0,0.00046701,10]
[394297638,1763427039745,-172.67818264,0.00046701,5]
[394297639,1763427039755,-469.0,0.00046753,2]
[394297640,1763427039764,-1000.0,0.000468,120]
[394297642,1763427039774,-151.0,0.00046848,120]
[394297643,1763427039784,-199.0,0.00046849,30]
[394297644,1763427039794,-300.0,0.00046904,50]
[394297645,1763427039803,-180154.90140544,0.00047,10]
[394297647,1763427039816,-2818.78829896,0.00047,10]
[394297650,1763427039829,-1181.34538107,0.00047,10]
[394297652,1763427039841,-504.32018305,0.00047,10]
[394297654,1763427039851,-1224.82266252,0.00047,10]
[394297656,1763427039862,-540.61021453,0.00047,10]
[394297750,1763427040770,-233538.03792217,0.00047,10]
[394297752,1763427040782,-3486.6653875,0.00047,10]
[394297754,1763427040793,-3520.04,0.00047,10]
[394297789,1763427041191,-1256.94936364,0.00047,10]
[394297791,1763427041201,-43736.66132878,0.00047,10]
[394297950,1763427043473,-17335.01535353,0.00047,10]
[394297952,1763427043609,-51595.27558875,0.00047,10]
[394297953,1763427043777,-508.4114515,0.00047,10]
[394297954,1763427043924,150.0,0.00031583,2]
[394297955,1763427044341,150.0,0.00034454,2]
[394297956,1763427044755,179.26,0.00037326,2]
[394297977,1763427046750,-239.02,0.00040197,2]
[394297978,1763427046759,-298.77,0.00043068,2]
[394297979,1763427046769,-77.58478217,0.00045939,2]
[394297980,1763427046780,-280.94521783,0.00045939,2]
[394297981,1763427046789,-151.0,0.000465,120]
[394297982,1763427046798,-90445.58883234,0.00047,10]
[394297986,1763427107339,380.2959005,0.00023672,2]
[394298005,1763427418094,162.0,0.000328,120]
[394298014,1763427903140,862.0,0.00018,2]
[394298015,1763427937282,-676.40396396,0.0002178,2]
[394298018,1763428038073,-191.47270549,0.0002178,2]
[394298019,1763428038092,-150.0,0.0002189,2]
[394298020,1763428038110,-2258.0,0.00022,2]
[394298021,1763428038128,-202.966829,0.00022555,2]
[394298022,1763428038145,-1490.8280666,0.00022936,7]
[394298023,1763428038165,-1000.0,0.00023055,30]
[394298024,1763428038182,-193.85341116,0.000231,2]
[394298025,1763428038202,-844.42406367,0.00023568,2]
[394298026,1763428040090,-369.58263944,0.00022345,2]
[394298029,1763428051087,-306.52470546,0.00022345,2]
[394298030,1763428051107,-355.57593633,0.00023568,2]
[394298031,1763428051125,-3061.86941865,0.00023569,2]
[394298032,1763428051145,-300.0,0.00023665,2]
[394298033,1763428051164,-300.0,0.00023666,2]
[394298034,1763428051183,-300.0,0.00023667,2]
[394298035,1763428051203,-300.0,0.00023667,2]
[394298036,1763428051224,-11371.85927617,0.00023667,2]
[394298037,1763428053086,-2891.01203139,0.00023667,2]
[394298039,1763428109072,168.479584,0.00013699,2]
[394298040,1763428151081,-4921.91640371,0.00019986,2]
[394298041,1763428161109,-78.08359629,0.00019986,2]
[394298042,1763428161128,-139.12623666,0.00020187,2]
[394298043,1763428161151,-29.35334734,0.00020187,2]
[394298044,1763428161171,-2856.8807824,0.00022667,2]
[394298045,1763428161190,-300.0,0.00023429,2]
[394298046,1763428161208,-1684.15,0.0002343,2]
[394298047,1763428161227,-5000.0,0.0002343,2]
[394298048,1763428161247,-170.8339913,0.0002343,2]
[394298049,1763428161268,-500.0,0.00023665,2]
[394298050,1763428161287,-500.0,0.00023665,2]
[394298051,1763428161308,-500.0,0.00023665,2]
[394298052,1763428161328,-500.0,0.00023665,2]
[394298053,1763428161348,-500.0,0.00023665,2]
[394298054,1763428161371,-500.0,0.00023665,2]
[394298055,1763428161392,-500.0,0.00023665,2]
[394298056,1763428161415,-500.0,0.00023665,2]
[394298057,1763428161436,-500.0,0.00023665,2]
[394298058,1763428161455,-500.0,0.00023665,2]
[394298059,1763428161476,-500.0,0.00023665,2]
[394298060,1763428161495,-500.0,0.00023665,2]
[394298061,1763428161518,-500.0,0.00023665,2]
[394298062,1763428161537,-500.0,0.00023665,2]
[394298063,1763428161559,-500.0,0.00023665,2]
[394298064,1763428161582,-500.0,0.00023665,2]
[394298065,1763428161601,-500.0,0.00023665,2]
[394298066,1763428161620,-500.0,0.00023665,2]
[394298067,1763428161640,-500.0,0.00023665,2]
[394298068,1763428161661,-500.0,0.00023665,2]
[394298069,1763428161679,-500.0,0.00023665,2]
[394298070,1763428161698,-500.0,0.00023665,2]
[394298071,1763428161720,-500.0,0.00023665,2]
[394298072,1763428161739,-500.0,0.00023665,2]
[394298073,1763428161758,-500.0,0.00023665,2]
[394298074,1763428161777,-500.0,0.00023665,2]
[394298075,1763428161796,-500.0,0.00023665,2]
[394298076,1763428161816,-500.0,0.00023665,2]
[394298077,1763428161837,-500.0,0.00023665,2]
[394298078,1763428161855,-500.0,0.00023665,2]
[394298079,1763428161874,-500.0,0.00023665,2]
[394298080,1763428161894,-500.0,0.00023665,2]
[394298081,1763428161996,-500.0,0.00023665,2]
[394298082,1763428162018,-500.0,0.00023665,2]
[394298083,1763428162040,-500.0,0.00023665,2]
[394298084,1763428162062,-500.0,0.00023665,2]
[394298085,1763428162082,-500.0,0.00023665,2]
[394298086,1763428162102,-500.0,0.00023665,2]
[394298087,1763428162123,-500.0,0.00023665,2]
[394298088,1763428162143,-500.0,0.00023665,2]
[394298089,1763428162166,-500.0,0.00023665,2]
[394298090,1763428162185,-274.6899523,0.00023665,2]
[394298091,1763428162206,-500.0,0.00023665,2]
[394298092,1763428162227,-500.0,0.00023665,2]
[394298093,1763428162247,-500.0,0.00023665,2]
[394298094,1763428162269,-500.0,0.00023665,2]
[394298095,1763428162290,-500.0,0.00023665,2]
[394298096,1763428162310,-500.0,0.00023665,2]
[394298097,1763428162331,-500.0,0.00023665,2]
[394298098,1763428162350,-500.0,0.00023665,2]
[394298099,1763428162368,-629.9726353,0.00023665,2]
[394298100,1763428162393,-500.0,0.00023665,2]
[394298101,1763428162413,-580.93251061,0.00023665,2]
[394298102,1763428162433,-500.0,0.00023665,2]
[394298103,1763428162454,-500.0,0.00023665,2]
[394298104,1763428162474,-500.0,0.00023665,2]
[394298105,1763428162495,-500.0,0.00023665,2]
[394298106,1763428162514,-500.0,0.00023665,2]
[394298107,1763428162539,-500.0,0.00023665,2]
[394298108,1763428162562,-500.0,0.00023665,2]
[394298109,1763428162582,-356.59314504,0.00023665,2]
[394298110,1763428162606,-500.0,0.00023665,2]
[394298111,1763428162625,-579.86004402,0.00023665,2]
[394298112,1763428162645,-500.0,0.00023665,2]
[394298113,1763428162665,-391.3228162,0.00023665,2]
[394298114,1763428162684,-500.0,0.00023665,2]
[394298115,1763428162705,-500.0,0.00023665,2]
[394298116,1763428162724,-500.0,0.00023665,2]
[394298117,1763428162745,-500.0,0.00023665,2]
[394298118,1763428162765,-500.0,0.00023665,2]
[394298119,1763428162784,-500.0,0.00023665,2]
[394298120,1763428162804,-500.0,0.00023665,2]
[394298121,1763428162823,-500.0,0.00023665,2]
[394298122,1763428162842,-500.0,0.00023665,2]
[394298123,1763428162862,-500.0,0.00023665,2]
[394298124,1763428162884,-500.0,0.00023665,2]
[394298125,1763428162904,-500.0,0.00023665,2]
[394298126,1763428162924,-500.0,0.00023665,2]
[394298127,1763428162943,-500.0,0.00023665,2]
[394298128,1763428162964,-500.0,0.00023665,2]
[394298129,1763428162984,-500.0,0.00023665,2]
[394298130,1763428163004,-500.0,0.00023665,2]
[394298131,1763428163023,-500.0,0.00023665,2]
[394298132,1763428163045,-500.0,0.00023665,2]
[394298133,1763428163066,-500.0,0.00023665,2]
[394298134,1763428163086,-500.0,0.00023665,2]